{"text_format":"1","workbook":"xlsx","n_sheets":7,"sheets":["accueil","interventions","formulaire interventions","formulaire machines","machines","affectation","listes"],"not_rendered":{"charts":0,"images":1,"macros":1,"external_links":1,"defined_names":4,"comments":0,"pivot_tables":0},"unopened":[],"bounds":{"document_bytes":16777216,"sheet_cells":100000,"rows_first":2000,"rows_last":500,"rows_between":2000,"halvings":0,"cell_chars":16384,"cell_head_chars":4096},"cells_cut":0,"cells_raw":0,"read":"whole","date_system":"1900"}

{"sheet":"accueil","index":0,"n_rows":4,"n_cols":6,"rows_kept":4,"cut":false,"hidden":false,"merged":[[1,3,2,6],[3,5,3,7]]}
[]
[null,null,null,"Accueil"]
[]
[null,null,null,null,null,{"$f":"TODAY()","v":"2021-11-04"}]

{"sheet":"interventions","index":1,"n_rows":67,"n_cols":23,"rows_kept":67,"cut":false,"hidden":false,"merged":[[0,0,0,22]]}
["INTERVENTIONS"]
[null,null,"intervenants",null,"machines",null,null,null,"autres",null,null,"pannes",null,null,"interventions",null,null,null,null,"demandeur & n°",null,"pièces"]
["Num","date","intervenant 1","intervenant 2","N° SIS","N° MDL","désignation","ligne /produit","bâtiment","emplacement","désignation2","code panne","descriptif panne","tps panne","code inter.","détail inter.","tps inter.","type d'intervention","n° de préventif planifié","demandeur","N° de demande","pièce 1","pièce 2"]
[{"$f":" ROW(A4) - 3","v":1},"2021-10-01","Cyrille",null,"M2284",null,"cabine d'encollage","Prépa  toron",null,null,null,null,"roulemen linéaire HS + capteur FC",null,"mécanique","démontage + divers essais pour dépannage NOK",5,"curratif"]
[2,"2021-10-01","Cyrille",null,"M2756",null,"MAC plate","PF Emilie ligne 4",null,null,null,null,"Eléctrovanne tension ne fonctionne pas tout le temps",null,"pneumatique","démontage d'une électrovanne sur une surjeteuse en attent pour dépannage",0.25,"curratif"]
[3,"2021-10-01","Cyrille",null,null,null,null,null,"C",null,"PF Sarah",null,null,null,"aménagement","installation + montage lampes",0.5]
[{"$f":" ROW(A7) - 3","v":4},"2021-10-01","Cyrille",null,null,null,null,null,"C","D","Etui 3 montres",null,null,null,"aménagement","réaménagement + ajout 2 machines",1,null,null,"Murielle"]
[5,"2021-10-04","Cyrille",null,null,null,null,null,"C","D","étui 3 montres",null,null,null,"aménagement","accroche cables",1]
[6,"2021-10-04","Cyrille",null,"M2284",null,"cabine d'encollage","Prépa toron",null,null,null,null,"capteur sb6 HS",null,"électrique prod","changement capteur",0.5,"curratif",null,null,null,"capteur PNP M8"]
[7,"2021-10-04","Cyrille",null,null,null,null,null,"C","E","poignées toronds",null,null,null,"électrique prod","montage + installation lampe de table ( 8 )",1,null,null,"Patricia"]
[8,"2021-10-04","Cyrille",null,"M546",null,"MAC canon","Etui 3 montres",null,null,null,null,"point ne retombent pas les uns dans les autres en marche arrière",null,"mécanique","réglage course marche arrière",0.5,"curratif",null,"Opérateur"]
[9,"2021-10-05",null,null,null,null,null,null,"tous",null,null,null,"coupure électrique générale",3]
[10,"2021-10-05","Cyrille",null,null,null,null,null,"C","sanitaires femmes",null,null,null,null,"plomberie / sanitaire","réglage porte + changement lunettes toilette X3",1.5,"préventif"]
[11,"2021-10-05","Cyrille",null,"M546",null,"MAC canon","Etui 3 montres",null,null,null,null,"chignon sous la couture",null,"mécanique","réglage tension + changement ressort supérieur",0.5,null,null,"Opérateur"]
[{"$f":" ROW(A15) - 3","v":12},"2021-10-06","Cyrille",null,"M2467",180063,"MAC canon","Etui 3 montres",null,null,null,null,"barre à aiguille touche la pièce,",null,"mécanique","meulage pied pour éviter tallonnement avec la pièce + rotation barre à aiguille",1,null,null,"Opérateur"]
[13,"2021-10-06","Cyrille",null,"M546",null,"MAC canon","Etui 3 montres",null,null,null,null,"aiguille s'épointe, ",null,null,"meulage pied + centrage griffe + ébavurage trou de l'aiguille",1,"curratif",null,"Opérateur"]
[14,"2021-10-06","Cyrille",null,"M2183",null,"MAC plate","PF Sarah",null,null,null,null,"point plus en marche arrière",null,"mécanique","réglage longueur point en marche arrière ( sur verrin )",1,null,null,"Opérateur"]
[15,"2021-10-06","Cyrille",null,null,null,null,null,"C",null,"CTA + CIA",null,null,null,"électrique bâtiment","réarmement suite à microcoupure",0.25,"curratif"]
[16,"2021-10-07","Cyrille",null,"M546",null,"MAC canon","Etui 3 montres",null,null,null,null,"chignon dessous, sur épaisseur + fil effiloche",null,"sécurité","divers réglage crochet mais trop juste commande crochet neuf, reglage prise de boucle à 2 mm + divers essais mais mais fil \" claque \" attente crochet neuf",5,"curratif",null,"Opérateur"]
[17,"2021-10-07","Cyrille",null,null,null,null,null,"C",null,null,null,null,null,"amélioration / modification ","découpe pain de paraffine ",0.5,null,null,"Patricia"]
[18,"2021-10-07","Cyrille",null,null,null,null,null,"C",null,"prépa PF",null,null,null,"pneumatique","changement pointe brule fil",0.25,null,null,"Opérateur"]
[{"$f":" ROW(A22) - 3","v":19},"2021-10-08","Cyrille",null,"M2167",null,"coupe torond","Prépa toron",null,"maintenance",null,null,"coupe mal les torondd",null,"amélioration / modification ","renfort barre d'appui, des ressorts, changement lame + essai de faire une plaque ajourrée pour que la lame descnde plus bas à sivre ",2]
[20,"2021-10-08","Cyrille",null,null,null,null,null,"C","Fleurs","lavabo",null,"démontage siffon par opéraeur mais pas pu le remettre",null,"plomberie / sanitaire","remontage siphon après débouchage à l'aspirateur",0.5]
[21,"2021-10-08","Cyrille",null,"M2284",null,"cabine d'encollage","Prépa toron",null,null,null,null,null,null,"électromécanique","remontage guidage linéaire + relayage capteur SQ6 en NC",1]
[22,"2021-10-11","Cyrille",null,null,null,null,null,"C","Toronds","Four Stiff",null,"Lampe HS",null,"électrique prod","changement four car en spare plus changement ampoule",1,"curratif",null,"Opérateur",null,"ampoule halogène 400w"]
[23,"2021-10-12","Cyrille",null,"M2425",180056,"MAC plate","Prépa PF Emilie",null,null,null,null,"fil dans points d'arret",null,"réglage","reglage synchronisation point d'arret ( para 135 sur ON + temps d'arret passé à 150 ms )",1,null,null,"Opérateur"]
[24,"2021-10-13","Cyrille",null,"M972",null,"surtaille","PF Emilie",null,null,null,null,"billot usé",null,"mécanique","changement de billot + réglage hauteur",1,"préventif",null,"Opérateur",null,"billot raboté"]
[25,"2021-10-13","Cyrille",null,"M2976",null,"refendeuse","Prépa toron",null,null,null,null,"courooie entrainement affuteur cassée",null,"mécanique","essai collage + coutrure courroie en dépannage",1,"curratif",null,"Opérateur"]
[26,"2021-10-13","Cyrille",null,"MDL21001",null,"machine à teinter","Toron",null,null,null,null,null,null,"réglage","montage machine + essai ",0.5,null,null,"Patricia"]
[27,"2021-10-13","Cyrille",null,"M2467",180063,"MAC canon","Etui 3 montres",null,null,null,null,"bruit en fonctonnement, volant touche le synchro",null,"sécurité","reglage survolant + serrage vis",0.25,"curratif",null,"Claire"]
[{"$f":" ROW(A31) - 3","v":28},"2021-10-14","Cyrille",null,"M546",null,"MAC canon","Etui 3 montres",null,null,null,null,null,null,"mécanique","Changement crochet + reglage + changement pied",3,"curratif",null,null,null,"crochet 335"]
[29,"2021-10-14","Cyrille",null,null,null,null,null,"extérieur",null,null,null,null,null,"extérieurs bâtiment","tonte",2.5]
[30,"2021-10-14","Cyrille",null,"M2979",null,"ponceuse","Toron",null,null,null,null,"plaque appui bande usée",null,"mécanique","fabrication d'une plaque + changement",1,"curratif",null,null,null,"plaque appui bande"]
[31,"2021-10-15","Cyrille",null,null,null,null,null,"C",null,"store lateral ( BSO )",null,null,null,"électrique bâtiment","réinitialisation télécommande ( disjoncteur DB5 dans armoire B",1]
[32,"2021-10-15","Cyrille",null,"M706",null,"ponceuse","Toron",null,null,null,null,null,null,"amélioration / modification ","échange de lampe pour focaliser plus la lumière ( lampe prise sur surjeteuse )",0.5,null,null,"Patricia"]
[33,"2021-10-18","Cyrille",null,"M2241",null,"cabine de teinte","Prépa PF Emilie",null,null,null,null,"teinte sur pistolet ne sort pas",null,"pneumatique","Changement tuyau teinte + débouchage arrivée pression de gavage",0.5,"curratif",null,"Opérateur",null,"tuyau pour pistolet teinte"]
[{"$f":" ROW(A37) - 3","v":34},"2021-10-18","Cyrille",null,null,null,null,null,"C",null,"faut plafond zone A",null,null,null,"bâtiment","chgt et mise en place d'une plaqsue de faut plafond",0.25,null,null,null,null,"1 plaque de faut plafond"]
[35,"2021-10-19","Cyrille",null,"M956",null,"MAC canon","PF Sarah",null,null,null,null,null,null,"aménagement","Mise en place de plaque pour transformation machine plate",0.75,null,null,"Claire"]
[36,"2021-10-19","Cyrille",null,null,null,null,null,"C","Général",null,null,"micro coupure",null,null,"remise en route CTA + CIAT suite à micro coupure "]
[37,"2021-10-19","Cyrille","Hammid ( chauffage )",null,null,null,null,"C",null,"CTA",null,"sensation d'air froid souflé par moment",null,"réglage","Passage de la température mini de souflage à 22,5 ( mode hivers ) au lieu de 16,4 ( mode été )",0.5,"externe"]
[38,"2021-10-19","Cyrille",null,null,null,null,null,"C","Général","porte SAS",null,null,null,"bâtiment","réfection poignée de porte + réglage \"Groom \" ",0.5]
[39,"2021-10-20","Cyrille",null,"M2606",null,"ponceuse","Commun multiproduits",null,null,null,null,null,null,"réglage","changement bande abrasive + asoiration",0.75,"préventif",null,null,null,"2 bandes abrasives"]
[{"$f":" ROW(A43) - 3","v":40},"2021-10-21","Cyrille",null,"MDL21011","MDL21011","Machine à casser les soufflets",null,null,null,null,null,null,null,"réglage","reception + branchement machine pour essais",1.5]
[41,"2021-10-21","Cyrille",null,null,null,null,null,"C","Etui 3 montres",null,null,null,null,"aménagement","mise en place de deux four suplémentaires",0.5,null,null,"Ludovick"]
[42,"2021-10-21","Cyrille",null,"M2700",null,"étuve",null,null,null,null,null,"alarme",null,"réglage","reglage thermostat sécurité",0.25,null,null,"Opérateur"]
[43,"2021-10-21",null,null,null,null,null,null,"extérieur","Général","portique parking",null,null,null,null,"fixation limiteur hauteur véhicule  ( décroché suite à vent violent )",0.25]
[44,"2021-10-21","Cyrille",null,"M3185","MDL21010","ponceuse",null,null,null,null,null,null,null,"réglage","mise en place bande de 15 ( changement galets + plaque appui bande )",0.75]
[45,"2021-10-22","Cyrille",null,null,null,null,null,"C","vestiaires femmes","robinet automatique",null,"robinet coule sans cesse",null,"plomberie / sanitaire","changement pile ( 9V )",0.75]
[46,"2021-10-22","Cyrille",null,null,null,null,null,"C","Général","lavabo atelier",null,"bouchés X 2",null,"plomberie / sanitaire","démontage complet siphon + nettoyage",1.5]
[{"$f":" ROW(A50) - 3","v":47},"2021-10-25","Cyrille",null,"M1374",null,"Compresseur",null,"C","local compreseur",null,null,null,null,"mécanique","nettoyage filtre à air + complément huile",0.5,"préventif"]
[48,"2021-10-26","Cyrille",null,"M1283",null,"surtaille ","Prépa PF Emilie","C",null,null,null,null,null,"aménagement","changement de place ( prépa torron )",0.5,null,null,"Claire"]
[49,"2021-10-27","Cyrille",null,"M392",null,"MAC plate","PF Emilie L1","C",null,null,null,"griffe la matière",null,"mécanique","polissage griffe machine + nettoyage",0.5,"curratif",null,"Opérateur"]
[50,"2021-10-27","Cyrille",null,"M2976",null,"refendeuse","Prépa toron","C",null,null,null,null,null,"mécanique","changement lame + nettoyage",4,"conditionnelle",null,null,null,"lame refendeuse","courroie affuteurs"]
[51,"2021-10-28","Cyrille",null,"M706",null,"ponceuse","Toron","C",null,null,null,null,null,"nettoyage","nettoyage+ changement sac poussière aspiration",1,null,null,"Opérateur",null,"un sac"]
[52,"2021-10-28","Cyrille",null,"M365",null,"Potence","PF Sarah","C",null,null,null,null,null,"réglage","réglage hauteur potence  ( jeu de cales =2,30 )",0.5,null,null,"Claire"]
[{"$f":" ROW(A56) - 3","v":53},"2021-10-29","Cyrille",null,null,null,null,null,"C","Etui 3 montres","tables",null,null,null,"aménagement","réduction tablette pour poser séchoir sur tables ( 2X )",2.5,null,null,"Ludovick"]
[54,"2021-10-29","Cyrille",null,null,null,null,null,"C","Général",null,null,null,null,"amélioration / modification ","montage support sac déchets",0.5,null,null,"Murielle"]
[55,"2021-11-02","Cyrille",null,"M2468",180062,"MAC canon","Etui 3 montres","C",null,null,null,null,null,"pneumatique","changement \"TE\" diam 8",0.25,"préventif",null,null,null,"1 té diam 8"]
[56,"2021-11-02","Cyrille",null,"M2467",180063,"MAC canon","Etui 3 montres","C",null,null,null,"point de manque",null,"mécanique","polissage trou griffe + centrage griffe",0.5,"curratif"]
[57,"2021-11-02","Cyrille",null,"M1374",null,"Compresseur",null,"C","local compreseur",null,null,"long à remonter en pression général",null,"pneumatique","réglage pression de démarage à 7bars ( +1,25 tour en + )reglage tempo purge cuve de 10secondes à 5 secondes",1]
[58,"2021-11-03","Cyrille",null,"M546",null,"MAC canon","Etui 3 montres","C",null,null,null,"effiloche en marche arrière + boucle",null,"mécanique","reglage aiguille au millieu du trou de griffe + verif prise de boucle + reglage crochet",2,"curratif",null,"Opérateur"]
[59,"2021-11-03","Cyrille",null,"M953",null,"MAC plate","PF Sarah","C",null,null,null,"guide talonne la FAG",null,"réglage","limage polissage guide pour passage FAG",0.5,null,null,"Opérateur"]
[60,"2021-11-03","Cyrille",null,"M956",null,"MAC canon","PF Sarah","C",null,null,null,"plaque rajouté griffe pièce",null,"réglage","adoucissement angle plaque",0.25,null,null,"Opérateur"]
[61,"2021-11-03","Cyrille",null,"M574",null,"MAC plate","PF Sarah","C",null,null,null,"pied entraineur marque la pièce",null,"mécanique","polissage pied",0.25,null,null,"Opérateur"]
[62,"2021-11-03","Cyrille",null,"M2979",null,"ponceuse","Toron","C",null,null,null,null,null,"réglage","démontage complet + nettoyage complet ( attente de sac aspiration )",1.5,"préventif"]
[63,"2021-11-03","Cyrille",null,null,null,null,null,"C","Général","CTA ",null,null,null,null,"passage température de 22,5 à 21,5",0.25,null,null,"Ludovick"]
[64,"2021-11-02","Cyrille",null,null,null,null,null,"C","Toron",null,null,null,null,"aménagement","déplacement d'une partie toron pour avoir la place pour le SARAH",2.25,null,null,"Claire"]

{"sheet":"formulaire interventions","index":2,"n_rows":21,"n_cols":18,"rows_kept":21,"cut":false,"hidden":false,"merged":[[1,1,24,1],[20,16,20,18],[10,12,10,13],[16,6,17,8],[20,6,21,8],[7,3,7,7],[7,9,7,13],[9,12,9,13],[5,8,5,11],[5,13,5,14],[4,8,4,14],[14,3,14,14],[1,17,1,18],[1,2,3,16]]}
[]
[null,null,"SAISIE INTERVENTIONS"]
[]
[]
[null,null,null,null,"date",null,null,null,"intervenants"]
[null,null,null,null,"2021-11-02"]
[]
[null,null,null,"machine production",null,null,null,null,null,"machine diverse / autre",null,null,null,null,null,null,null,"demandeur"]
[null,null,null,null,"N° SIS",null,"Désignation machine",null,null,null,"bâtiment",null,null,null,null,null,null,"nom"]
[null,null,null,null,null,null,null,null,null,null,null,null,"désignation"]
[null,null,null,null,"N° MDL",null,"ligne / produit",null,null,null,"emplacement",null,null,null,null,null,null,"N° demande"]
[]
[]
[]
[null,null,null,"intervention ",null,null,null,null,null,null,null,null,null,null,null,null,null,"pièces"]
[null,null,null,null,null,null,"desciptif panne"]
[null,null,null,null,"code panne",null,null,null,null,null,"temps de panne"]
[]
[null,null,null,null,null,null,null,null,null,null,null,null,null,"Type d'intervention"]
[null,null,null,null,null,null,"détail intervention"]
[null,null,null,null,"code inter.",null,null,null,null,null,"temps d'inter.",null,null,"N° préventif planifié"]

{"sheet":"formulaire machines","index":3,"n_rows":15,"n_cols":14,"rows_kept":15,"cut":false,"hidden":false,"merged":[[15,8,15,10],[14,8,14,10],[1,2,3,12],[10,3,10,5],[9,8,9,10],[4,10,4,11],[6,10,6,11]]}
[]
[null,null,"FORMULAIRE MACHINES"]
[null,null,null,null,null,null,null,null,null,null,null,null,null,{"$f":"COUNT(Tableau7[ID])","v":117}]
[]
[null,null,null,"N° SIS",null,"désignation machine",null,null,"n° de série",null,"date d'entrée MDL"]
[null,null,null,null,null,null,null,null,null,null,null,null,null,"valeur"]
[null,null,null,"N° MDL",null,"marque",null,null,"année",null,"date de sortie MDL"]
[]
[null,null,null,null,null,"type"]
[null,null,null,null,null,null,null,null,"AFFECTATION"]
[null,null,null,"Remarques",null,null,null,null,"produit / ligne",null,"date affectation"]
[]
[null,null,null,null,null,null,null,null,"Zone",null,"bâtiment"]
[]
[null,null,null,null,null,null,null,null,"divers"]

{"sheet":"machines","index":4,"n_rows":120,"n_cols":23,"rows_kept":120,"cut":false,"hidden":false,"merged":[[0,0,0,16]]}
["MACHINES et affectations produit"]
[]
["ID","N° SIS","N° MDL","Désignation","Marque","Modèle / Type","N° série","Année","Rémarques","Date d'entrée ","Date de sortie","valeur","Produit / ligne","Zone","Bâtiment","Divers","Date d'affectation produit","Contrôle APAVE","AU coup de poing","AU coup de pied","Bimanuelle","Barrière imm.","Capteur accès"]
[{"$f":"ROW(A4)-3","v":1},"M2441",180073,"machine à teinter","ACM","ACM-MAC2","181211-B",2021,null,null,null,null,"PF Emilie L1","A ","C",null,"2020-10-01"]
[2,"M2443",180071,"étuve","France étuve","XAS 800",922,null,null,null,null,null,"PF Emilie L1","A","C",null,"2020-10-01"]
[3,"M392",null,"MAC plate","Juki","2810-6","8L8GK11006",null,"chassis électrique",null,null,null,"PF Emilie L1","A","C",null,"2020-10-01"]
[4,"M932",180069,"MAC plate","Pfaff",1181,null,null,"chassis mécanique",null,null,null,"PF Emilie commun","A","C",null,"2020-10-01"]
[5,"M2594",null,"Sertisseuse tirette","Luthy machine",null,null,null,null,null,null,null,"PF Emilie commun","A","C",null,"2020-10-01"]
[6,"M2422",180060,"MAC plate","Durkopp",767,7677835060,null,"chassis mécanique",null,null,null,"PF Emilie L1","A","C",null,"2020-10-01"]
[7,"M379",180068,"MAC plate","Juki","2810-6","8L8GL11028",null,"chassis mécanique",null,null,null,"PF Emilie L2","A","C"]
[8,"M881",null,"stif","Stif","Colo typ 2",1023,38018,null,null,null,null,"PF Emilie L2 ","A","C"]
[9,"M2699",null,"étuve","France étuve","XAS 800","P743",2019,null,null,null,null,"PF Emilie L2","A","C"]
[10,"M2424",180058,"MAC plate","Durkopp",767,767881952,null,"chassis mécanique",null,null,null,"PF Emilie L2","A","C",null,"2021-09-14"]
[11,"M2440",180074,"riveteuse","ACM","ACMRIV MINI80",181154,43466,null,null,null,null,"PF Emilie commun","A","C",null,"2020-10-01"]
[12,"M2755",null,"machine à teinter","ACM","ACM-MAC2",191023,43739,null,null,null,null,"PF Emilie L2","A","C"]
[13,"M2442",180072,"machine à teinter","ACM","ACM-MAC2","181211D",43466,null,null,null,null,"PF Emilie L3","A","C"]
[14,"M2700",null,"étuve","France étuve","XAS 800","P744",2019,null,null,null,null,null,"A","C"]
[15,"M1167",null,"stif","Stif ","Colo typ 2",2696,null,null,null,null,null,"PF Emilie L3","A","C"]
[16,"M734",null,"MAC plate","Juki","2810-6","8L8LG00318",null,"chassis électrique",null,null,null,"PF Emilie L3","A","C"]
[17,"M761",180067,"MAC plate","Pfaff",2081,72502000,null,"chassis mécanique",null,null,null,"PF Emilie L3","A","C"]
[18,"M2423",180059,"MAC plate","Durkopp",767,767837961,null,"chassis mécanique",null,null,null,"PF Emilie L3","A","C"]
[19,"M2756",null,"MAC plate","Juki","2810-6","8L8ME00118",null,"chassis électrique",null,null,null,"PF Emilie L4","A","C"]
[20,"M2621",null,null,"Stif ","poste CS","F577-4",40725,null,null,null,null,"PF Emilie L4","A","C"]
[21,"M2782",null,"étuve","France étuve","XAS 800","181076-A",43435,null,null,null,null,"PF Emilie L4","A","C"]
[22,"M2439",180075,"riveteuse",null,"8R8000",181153,43466,null,null,null,null,"PF Emilie","A","C",null,"commune lignes 3 et 4"]
[23,"M390",null,"Potence","Luthy machine",null,null,null,null,null,null,null,"PF Emilie ","A","C",null,"commune lignes 3 et 4"]
[24,"M972",null,"surtaille","ATOM","MF-91",10106551,2021,null,null,null,null,"PF Emilie","A","C",null,"commune  lignes 1/2/3/4"]
[25,"M2976",null,"refendeuse","Camoga","C420L+","42L5021",2016,null,null,null,null,"Prépa toron","D","C",null,null,null,false,true,false,false,true]
[26,"M2460",null,"calendreuse","Saturn","4900VR",191045,2019,null,null,null,null,"Prépa toron","D","C",null,null,null,true,false,false,false,false]
[27,"M2242",null,"cabine de teinte","Stif ","956 XXL IR","J669.03/18","08/2018",null,null,null,null,"Prépa toron","D","C",null,null,null,true,false,false,false,false]
[28,"M2284",null,"cabine d'encollage","Overmec","TA3",207107,2020,null,null,null,null,"Prépa toron","D","C",null,null,null,true,false,false,false,true]
[29,"M687",null,"raseuse",null,"ARM1810",2,2008,null,null,null,null,"Prépa toron","D","C",null,null,null,true,false,true,false,false]
[30,"M1291",null,"raseuse",null,"BTL6050",1,2011,null,null,null,null,"Prépa toron","D","C",null,null,null,true,false,true,false,false]
[31,"M688",null,"MAC canon","Durkopp","205-037",205324243,null,null,null,null,null,"Prépa toron","D","C"]
[32,"M639",null,"MAC canon","Pfaff",335,7209281,null,"chassis électrique",null,null,null,"Etui 3 montres","D ","C",null,"2020-10-01"]
[{"$f":"ROW(A36)-3","v":33},"M1504",null,"MAC canon","Pfaff",335,7212093,null,"chassis électrique",null,null,null,"Etui 3 montres","D","C",null,"2020-10-01"]
[34,"M2468",180062,"MAC canon","Pfaff",335,7274838,null,"chassis électrique",null,null,null,"Etui 3 montres","D","C",null,"2020-10-01"]
[35,"M2169",null,"MAC canon","Durkopp","205-370",205703907,null,"chassis mécanique",null,null,null,"Prépa toron","D","C",null,"2021-01-01"]
[36,"M636",null,"MAC canon","Pfaff",335,2686787,null,"chassis électrique",null,null,null,"Etui 3 montres","D","C",null,"2020-10-01"]
[37,"M2426",180055,"MAC plate","Durkopp",767,767862024,null,"chassis électrique",null,null,null,"Etui 3 montres","D","C",null,"2020-10-01"]
[38,"M2466",null,"MAC canon","Pfaff",335,7274861,null,"chassis électrique",null,null,null,"Etui 3 montres","D","C",null,"2020-10-01"]
[39,"M100",null,"MAC plate","Pfaff",1181,6081626,null,"chassis mécanique",null,null,null,"Etui 3 montres","D","C",null,"2020-10-01"]
[40,"M751",null,"marteau électrique","colli FCB","BS3","8946-0",2011,null,null,null,null,"Etui 3 montres","D","C",null,"2020-10-01"]
[41,"M1283",null,"surtaille ","Galli","FS90",12678011,2011,null,null,null,null,"Prépa Toron",null,"C",null,"2021-10-26",null,true,false,false,false,false]
[42,"M382",null,"surtaille","ATOM","SE8",10075347,2013,null,null,null,null,"Prépa PF Emilie","B","C"]
[43,"M1429",null,"marqueuse","PMF",205,100940,null,null,null,null,null,"Prépa PF Emilie","B","C",null,"2020-10-01"]
[44,null,null,"gutteuse / thermocolleuse","Martin group","MEPP 130 TCX XTP",190571903,2019,null,null,null,null,"Prépa PF Emilie","B","C"]
[45,"M2286",null,"cabine d'encollage","Overmec","TA3",2010148,2020,null,null,null,null,"Prépa PF Emilie","B","C",null,"2020-10-01"]
[46,"M2241",null,"cabine de teinte","Stif ","956 XXL IR","J669.04/18","08/2018","669 Kg",null,null,null,"Prépa PF Emilie","B","C",null,"2020-10-01"]
[47,"M2792",null,"cabine d'encollage","Overmec","TS4.HV1",1910284,2019,null,null,null,null,"Prépa PF Emilie","B","C",null,"2020-10-01"]
[48,"M1304",null,"machine à fileter","OMAC","450-RC","FE0502",2005,null,null,null,null,"Prépa PF Emilie","B","C",null,"2020-10-01"]
[49,"M500",null,"MAC plate","Durkopp",467,467834729,null,"chassis mécanique",null,null,null,"Prépa PF Emilie","B","C",null,"2020-10-01"]
[50,"M96",null,"MAC plate","Pfaff",1183,2627465,2002,"chassis mécanique",null,null,null,"Prépa PF Emilie","B","C",null,"2020-10-01"]
[51,"M2425",180056,"MAC plate","Durkopp",767,767842727,null,"chassis mécanique",null,null,null,"Prépa PF Emilie","B","C",null,"2020-10-01"]
[52,"M87",null,"MAC plate","Pfaff",1181,6081643,null,"chassis mécanique",null,null,null,"Prépa PF Emilie","B","C",null,"2020-10-01"]
[53,"M1015",180070,"surtaille","ATOM",5108,null,null,null,null,null,null,"Prépa PF Emilie","B","C",null,"2020-10-01"]
[54,"M2285",null,"pareuse","Fortuna","ES 50",76850,2020,null,null,null,null,"Prépa PF Emilie","B","C",null,"2020-10-01"]
[55,"M2974",null,"soufflet","Galli","P 10",173328015,2015,null,null,null,null,"Prépa PF Emilie","B","C",null,"2020-10-01"]
[56,"M2613",null,"machine à teinter","ACM","ACM-MAC2","181211-C",2019,null,null,null,null,"Fleurs","F","C",null,"2020-10-01"]
[57,"M768",null,"four","Bimmac","F6080,X",720071,2011,"11KW/400V",null,null,null,"Fleurs","F","C",null,"2020-10-01",null,true,false,false,false,false]
[58,"M364",null,"potence",null,null,null,null,null,null,null,null,"fleurs","F","C",null,"2020-10-01"]
[59,"M2708",null,"machine à teinter","Monnet",1834,25,2019,null,null,null,null,"Fleurs","F","C",null,"2020-10-01"]
[60,"M2707",null,"machine à teinter","Monnet",1834,26,2019,null,null,null,null,"Toron",null,"C"]
[61,"M2444",null,"four","Stif ","WL600","K512-01/19",2019,null,null,null,null,"Fleurs","F","C",null,"2020-10-01"]
[62,"M942",null,"four","Stif ","WL600","J175-01",42887,null,null,null,null,"Toron",null,"C",null,"2021-09-01"]
[63,"M2446",null,"machine à teinter","Monnet",1817,100,2018,null,null,null,null,"Toron",null,"C"]
[{"$f":"ROW(A67)-3","v":64},"M1124",null,"four","Stif France","WL600","I 393.01","05/2015",null,null,null,null,"Toron",null,"C",null,"2021-10-20"]
[65,"M2447",180047,"machine à teinter","Monnet",1817,99,2018,null,null,null,null,"Toron",null,"C"]
[66,"M2606",null,"ponceuse","Volber","P254","144/13",2013,"Model P254 type Sheriggatrice 2 postes de travail",null,null,null,"Commun multiproduits",null,"C","PF Emilie et Sarah","2020-10-01"]
[67,"M2607",null,"aspiration","Haehn","9806 AZ 600",43661,1998,"400V  / 6,3A",null,null,null,"Commun multiproduits",null,"C","PF Emilie et Sarah","2021-10-01"]
[68,"M953",null,"MAC plate","Durkopp","767",767716939,null,"chassis mécanique","2021-09-01",null,null,"PF Sarah","C","C",null,"2021-09-14"]
[69,"M1194",null,"MAC plate","Pfaff","2081",7252017,null,"chassis mécanique","2021-09-01",null,null,"PF Sarah","C","C",null,"2021-09-14"]
[70,"M956",null,"MAC canon","Pfaff","335",7217648,null,"chassis électrique","2021-09-01",null,null,"PF Sarah","C","C",null,"2021-09-14"]
[71,"M649",null,"MAC plate","Durkopp","467",467834696,null,"chassis mécanique","2021-09-01",null,null,"PF Sarah","C","C",null,"2021-09-14"]
[72,"M2599",null,"MAC plate","Durkopp","767",767839339,null,"chassis mécanique","2021-09-01",null,null,"PF Sarah","C","C",null,"2021-09-14"]
[73,"M574",null,"MAC plate","Juki","2810","8L8LG00421",null,"chassis électrique","2021-09-01",null,null,"PF Sarah","C","C",null,"2021-09-14"]
[74,"M2990",null,"MAC plate","Juki","2212","3L8NC00204",null,"chassis mécanique","2021-09-01",null,null,"PF Sarah","C","C",null,"2021-09-14"]
[75,"M2183",null,"MAC plate","Juki","2810","8L8LG00313",null,"chassis électrique","2021-09-01",null,null,"PF Sarah","C","C",null,"2021-09-14"]
[76,"M365",null,"Potence","Luthy Machine",null,null,null,null,null,null,null,"PF Sarah","C","C",null,"2021-09-14"]
[77,"M2280",null,"Potence","Luthy Machine",null,null,null,null,null,null,null,"PF Sarah","C","C",null,"2021-09-14"]
[78,"M975",null,"machine à teinter","ACM","ACM-MAC2","170142-A",42767,null,"2021-09-01",null,null,"PF Sarah","C","C",null,"2021-09-14"]
[79,"M794",null,"machine à teinter","ACM","ACM-MAC2","150502-A",42125,null,"2021-09-01",null,null,"PF Sarah","C","C",null,"2021-01-14"]
[80,"M1187",null,"MAC plate","Pfaff","481",2669958,null,"chassis mécanique ( réhaussée )","2021-09-01",null,null,"PF Sarah","C","C",null,"2021-09-14"]
[81,"M2758",null,null,"Bimmac","ARL35-L",369148,2019,null,null,null,null,"PF Sarah","C","C",null,"2021-09-14"]
[82,"M2467",180063,"MAC canon","Pfaff","335",7273736,null,"chassis électrique",null,null,null,"Etui 3 montres","D","C",null,"2021-10-01"]
[83,"M546",null,"MAC canon","Pfaff","335",7217465,null,"chassis mécanique","2021-09-01",null,null,"Etui 3 montres","D","C",null,"2021-10-01"]
[84,"M503",null,"MAC plate","Pfaff","1425",2567791,null,"chassis mécanique",null,null,null,null,"maintenance","C"]
[85,"M989",null,"MAC plate","Pfaff","1181",6078893,null,"chassis mécanique",null,null,null,null,"maintenance","C"]
[86,"M2993",null,"MAC plate","Juki","2212","3L8NC00118",null,"chassis électrique","2021-09-01",null,null,null,"attente / transit","C",null,"2021-09-01"]
[87,"M804",null,"MAC plate","Durkopp","767",767824172,null,null,"2021-09-01",null,null,null,"attente / transit","C",null,"2021-09-01"]
[88,"M1374",null,"Compresseur","Worthington creyssac","SNX PRO 75B","ITR0220351",2009,"5,5 KW",null,null,null,null,"local compresseur","C",null,"2020-09-01"]
[89,"M1375",null,"sécheur","Worthington creyssac","DW5","CAI371495",2009,null,null,null,null,null,"local compresseur","C",null,"2021-09-01"]
[90,"M2167",null,"coupe torond","WSK","2127",146719,1991,"zone maintenance mais en fonction",null,null,null,"Prépa toron","maintenance","C"]
[91,"M1376",null,"cuve air comprimé","SIAP","500l",8101018060,2014,null,null,null,null,null,"local compresseur","C",null,"2020-10-01"]
[92,"M2595",null,"fontaine de degraissage","DACD","KIT FS11","K1115-0003",null,null,null,null,null,null,"nettoyage","C"]
[93,"C1",null,"chaudière","Atlantic","VARFREE 70","F404916897",2019,null,"1905-07-12",null,null,null,"Chaufferie","C"]
[94,"C2",null,"chaudière","Atlantic","VARFREE 70","F403916825",2019,null,"1905-07-12",null,null,null,"chaufferie","C"]
[95,"M3177",null,"surtaille ","PMF","561/1",141002,2021,"6kw / 1,550 T","2021-09-01"]
[{"$f":"ROW(A99)-3","v":96},"M1198",null,"presse manuelle",null,null,null,null,null,null,null,null,"Etui 3 montres","D","C",null,"2020-10-01"]
[97,"M2448",45,"machine à teinter","Monnet",null,null,null,null,null,null,null,"Fleurs","F","C",null,"2020-10-01"]
[98,"MDL21001","MDL21001","machine à teinter","Monnet","Monnet V2",116,2021,null,"2021-09-01",null,null,"Toron",null,"C",null,"2021-09-01"]
[99,"M3109",null,"machine à teinter","Monnet","Monnet V2",29,2020,null,null,null,null,"Toron",null,"C"]
[100,"M3110",null,"machine à teinter","Monnet",null,null,null,null,null,null,null,"Toron",null,"C"]
[{"$f":"ROW(A104)-3","v":101},"MDL21002","MDL21002","machine à teinter","Monnet",null,null,null,null,null,null,null,"Toron"]
[102,"MDL21003","MDL21003","four",null,"WL600","KS-512.02/19","02/2019",null,null,null,null,"Toron",null,"C",null,"2021-09-01"]
[103,"MDL21004","MDL21004","four",null,"WL600","I262-01","01/2017",null,null,null,null,"Toron",null,"C",null,"2021-09-01"]
[104,"MDL21005","MDL21005","four",null,"W600","I862-01","03/2017",null,null,null,null,"Toron",null,"C",null,"2021-09-01"]
[105,"MDL21006","MDL21006","étuve",null,"T178 ","XUELT112","2020",null,null,null,null,"Toron",null,"C",null,"2021-09-01"]
[106,"M516","MDL21007","four",null,"WL600","ESS-01/15","05/2015",null,null,null,null,"Toron","attente / transit","C",null,"2021-10-20"]
[107,"MDL21008","MDL21008","four",null,"W600","I862-02","03/2017",null,null,null,null,null,"attente / transit","C"]
[108,"MDL21009","MDL21009","machine à teinter","Monnet","Monnet V2",44,2020,null,null,null,null,"Fleurs","F","C",null,"2020-10-01"]
[{"$f":"ROW(A112)-3","v":109},"M2979",null,"ponceuse","Sander Machine","Varga 1400","ADP 041","05/2014",null,null,null,null,"Toron",null,"C",null,"2020-10-01"]
[110,"M706",null,"ponceuse","Dorey","AVR1",476,2012,"ponceuse + aspiration",null,null,null,"Toron",null,"C",null,"2020-10-01"]
[111,"M3185","MDL21010","ponceuse","Artdecoplus","Varga","ADP243","2021","230V / 1,5KW / 170 kg","2021-10-21"]
[112,"M845",null,"MAC plate","Durkopp","767",767863858,null,"chassis mécanique","2021-10-21"]
[113,"MDL21011","MDL21011","Machine à casser les soufflets","Stiff","395-GM","CL856","10/2021","230V / 1KW / 250kg","2021-10-20"]
[114,"M2783",null,"table aspirante","Stif","TYPE-GG","L057","11/2019","380V / 1,2Kw / 310 Kg",null,null,null,null,"attente / transit","C"]
[115,"M2276",null,"Machine de coupe ( bracelet )","Galli","FAC TECKNO",22262019,"2020","380V / 2,5Kw",null,null,null,null,"attente / transit","C"]
[{"$f":"ROW(A119)-3","v":116},"M3194","MDL21011","Machine à casser les soufflets","Stiff","395-GM","CL856","10/2021","230V / 1KW / 250kg","2021-10-20"]
[{"$f":"ROW(A120)-3","v":117},"M72",null,"machine à teinter","Stif","colo type 2",1035,"03/2004",null,null,null,null,"PF Emilie L1","A ","C",null,"2020-10-01"]

{"sheet":"affectation","index":5,"n_rows":92,"n_cols":8,"rows_kept":92,"cut":false,"hidden":false,"merged":[[0,1,1,7],[0,0,1,0]]}
[null,"Suivi affectation machines"]
[]
["Colonne1","N° SIS","N° MDL","Produit","zone","bâtiment","date d'affectation","divers"]
[null,"M953",null,"PF Sarah","C","C","2021-09-14"]
[null,"M1194",null,"PF Sarah","C","C","2021-09-14"]
[null,"M956",null,"PF Sarah","C","C","2021-09-14"]
[null,"M649",null,"PF Sarah","C","C","2021-09-14"]
[null,"M2599",null,"PF Sarah","C","C","2021-09-14"]
[null,"M574",null,"PF Sarah","C","C","2021-09-14"]
[null,"M2990",null,"PF Sarah","C","C","2021-09-14"]
[null,"M2183",null,"PF Sarah","C","C","2021-09-14"]
[null,"M365",null,"PF Sarah","C","C","2021-09-14"]
[null,"M2280",null,"PF Sarah","C","C","2021-09-14"]
[null,"M975",null,"PF Sarah","C","C","2021-09-14"]
[null,"M794",null,"PF Sarah","C","C","2021-01-14"]
[null,"M1187",null,"PF Sarah","C","C","2021-09-14"]
[null,"M2758",null,"PF Sarah","C","C","2021-09-14"]
[null,"M503",null,null,"maintenance","C"]
[null,"M989",null,null,"maintenance","C"]
[null,"M2993",null,null,"attente / transit","C","2021-09-01"]
[null,"M804",null,null,"attente / transit","C","2021-09-01"]
[null,"M915",null,null,"attente / transit","C"]
[null,"M1374",null,null,"local compresseur","C","2020-09-01"]
[null,"M1375",null,null,"local compresseur","C","2021-09-01"]
[null,"M2167",null,"Prépa toron","maintenance","C","2021-10-01"]
[null,"M1376",null,null,"local compresseur","C","2020-10-01"]
[null,"M2595",null,null,"nettoyage","C","2020-10-01"]
[null,"C1",null,null,"Chaufferie","C","2020-09-01"]
[null,"C2",null,null,"chaufferie","C","2020-09-01"]
[null,"M546",null,"Etui 3 montres","D","C","2021-10-01"]
[null,"M2467",180063,"Etui 3 montres","D","C","2021-10-01"]
[null,"M2169",null,"Prépa toron","D","C","2021-01-01"]
[null,"M639",null,"Etui 3 montres","D ","C","2020-10-01"]
[null,"M1504",null,"Etui 3 montres","D","C","2020-10-01"]
[null,"M2468",180062,"Etui 3 montres","D","C","2020-10-01"]
[null,"M636",null,"Etui 3 montres","D","C","2020-10-01"]
[null,"M2426",180055,"Etui 3 montres","D","C","2020-10-01"]
[null,"M2466",null,"Etui 3 montres","D","C","2020-10-01"]
[null,"M100",null,"Etui 3 montres","D","C","2020-10-01"]
[null,"M751",null,"Etui 3 montres","D","C","2020-10-01"]
[null,"M1198",null,"Etui 3 montres","D","C","2020-10-01"]
[null,"M1283",null,"Prépa PF Emilie","B","C","2020-10-01"]
[null,"M1429",null,"Prépa PF Emilie","B","C","2020-10-01"]
[null,"M2286",null,"Prépa PF Emilie","B","C","2020-10-01"]
[null,"M2241",null,"Prépa PF Emilie","B","C","2020-10-01"]
[null,"M2792",null,"Prépa PF Emilie","B","C","2020-10-01"]
[null,"M1304",null,"Prépa PF Emilie","B","C","2020-10-01"]
[null,"M500",null,"Prépa PF Emilie","B","C","2020-10-01"]
[null,"M96",null,"Prépa PF Emilie","B","C","2020-10-01"]
[null,"M2425",180056,"Prépa PF Emilie","B","C","2020-10-01"]
[null,"M87",null,"Prépa PF Emilie","B","C","2020-10-01"]
[null,"M1015",180070,"Prépa PF Emilie","B","C","2020-10-01"]
[null,"M2285",null,"Prépa PF Emilie","B","C","2020-10-01"]
[null,"M2974",null,"Prépa PF Emilie","B","C","2020-10-01"]
[null,"M2613",null,"Fleurs","F","C","2020-10-01"]
[null,"M768",null,"Fleurs","F","C","2020-10-01"]
[null,"M364",null,"fleurs","F","C","2020-10-01"]
[null,"M2708",null,"Fleurs","F","C","2020-10-01"]
[null,"M2448",45,"Fleurs","F","C","2020-10-01"]
[null,"M2444",null,"Fleurs","F","C","2020-10-01"]
[null,"MID60",null,"Fleurs","F","C","2020-10-01"]
[null,"M2707",null,"Toronds",null,"C"]
[null,"M3109",null,"Toronds",null,"C"]
[null,"M2446",null,"Toronds",null,"C"]
[null,"M2447",180047,"Toronds",null,"C"]
[null,"M3110",null,"Toronds",null,"C"]
[null,"MDL21001",null,"Toronds",null,"C","2021-09-01"]
[null,"M942",null,"Toron",null,"C","2021-09-01"]
[null,"MDL21003",null,"Toron",null,"C","2021-09-01"]
[null,"MDL21004",null,"Toron",null,"C","2021-09-01"]
[null,"MDL21005",null,"Toron",null,"C","2021-09-01"]
[null,"MDL21006",null,"Toron",null,"C","2021-09-01"]
[null,"M1124",null,null,"attente / transit","C"]
[null,"MDL21007",null,null,"attente / transit","C"]
[null,"MDL21007",null,null,"attente / transit","C"]
[null,"M2979",null,"Toron",null,"C","2020-10-01"]
[null,"M2607",null,"Commun multiproduits",null,"C","2021-10-01","PF Emilie et Sarah"]
[null,"M2606",null,"Commun multiproduits",null,"C","2021-10-01","PF Emilie et Sarah"]
[null,"M706",null,"Toron",null,"C","2020-10-01"]
[null,"M516","MDL21007","Toron",null,"C","2021-10-20"]
[null,"M1124",null,"Toron",null,"C","2021-10-20"]
[null,"M2783",null,null,"attente / transit","C"]
[null,"M2276",null,null,"attente / transit","C"]
[null,"M1283",null,"Prépa Toron",null,"C","2021-10-26"]
[null,"M392",null,"PF Emilie L1","A","C","2020-10-01"]
[null,"M2422",180060,"PF Emilie L1","A","C","2020-10-01"]
[null,"M2440",180074,"PF Emilie commun","A","C","2020-10-01"]
[null,"M2594",null,"PF Emilie commun","A","C","2020-10-01"]
[null,"M932",180069,"PF Emilie commun","A","C","2020-10-01"]
[null,"M2441",180073,"PF Emilie L1","A ","C","2020-10-01"]
[null,"M2443",180071,"PF Emilie L1","A","C","2020-10-01"]
[null,"M72",null,"PF Emilie L1","A ","C","2020-10-01"]

{"sheet":"listes","index":6,"n_rows":27,"n_cols":25,"rows_kept":27,"cut":false,"hidden":false,"merged":[]}
[]
[]
[]
[null,"désignation machines",null,"marque",null,"type",null,"produit / ligne",null,"zones",null,"bâtiment",null,"Emplacements",null,"Intervenants",null,"Demandeur",null,"Codes pannes",null,"Codes interventions",null,"Types d'interventions","Désignation  machine"]
[null,"cabine de teinte",null,"ACM",null,null,null,"Fleurs",null,"maintenance",null,"A",null,"Fleurs",null,"Cyrille",null,"Karim",null,null,null,"aménagement",null,"curratif","aspiration"]
[null,"cabine d'encollage",null,"Atom",null,null,null,"PF Emilie L1",null,"attente / transit",null,"B ",null,"PF Emilie L1",null,"Hammid ( chauffage )",null,"Ludovick",null,null,null,"amélioration / modification ",null,"préventif","cabine de teinte"]
[null,"étuve",null,"Bimmac",null,null,null,"PF Emilie L2",null,"A ",null,"C",null,"PF Emilie L2",null,null,null,"Murielle",null,null,null,"rangement / 5S",null,"préventif planifié","cabine d'encollage"]
[null,"four",null,"Camoga",null,null,null,"PF Emilie L3",null,"B",null,"extérieur",null,"PF Emilie L3",null,null,null,"Patricia",null,null,null,"électrique bâtiment",null,"contrôle réglementaire","étuve"]
[null,"guteuse",null,"Colli FCB",null,null,null,"PF Emilie L4",null,"C",null,null,null,"PF Emilie L4",null,null,null,"Claire",null,null,null,"plomberie / sanitaire",null,"externe","four"]
[null,"luthy machine",null,"Durkopp",null,null,null,"PF Emilie commun",null,"D",null,null,null,"PF Emilie commun",null,null,null,"Opérateur",null,null,null,"extérieurs bâtiment",null,"conditionnelle","MAC canon"]
[null,"MAC canon",null,"Fortuna",null,null,null,"Prépa Toron",null,"E",null,null,null,"Prépa toron",null,null,null,"Logistique",null,null,null,"chauffage / climatisation",null,null,"MAC pilier"]
[null,"MAC plate",null,"France étuve",null,null,null,"Prépa PF Emilie",null,"F",null,null,null,"Prépa PF Emilie",null,null,null,"Contrôle",null,null,null,"électrique prod",null,null,"MAC plate"]
[null,"machine à fileter",null,"Galli",null,null,null,"PF Sarah",null,"G",null,null,null,"PF Sarah",null,null,null,"Gilbert",null,null,null,"pneumatique",null,null,"machine à teinter"]
[null,"machine à teinter",null,"Haehn",null,null,null,"Etui 3 montres",null,"H",null,null,null,"Etui 3 montres",null,null,null,null,null,null,null,"hydraulique",null,null,"marqueuse"]
[null,"marqueuse",null,"Juky",null,null,null,"Toron",null,"réfectoire",null,null,null,"Toron",null,null,null,null,null,null,null,"bâtiment",null,null,"pareuse"]
[null,"marteau électrique",null,"Martin group",null,null,null,"Commun multiproduits",null,"sanitaires hommes",null,null,null,"maintenance",null,null,null,null,null,null,null,"sécurité",null,null,"ponceuse"]
[null,"pareuse",null,"Monet",null,null,null,null,null,"sanitaires femmes",null,null,null,"réfectoire",null,null,null,null,null,null,null,"mécanique",null,null,"Potence"]
[null,"ponceuse aspiration",null,"Omac",null,null,null,null,null,"vestiaires hommes",null,null,null,"sanitaires hommes",null,null,null,null,null,null,null,"réglage",null,null,"raseuse"]
[null,"potence",null,"Overmec",null,null,null,null,null,"vestiaires femmes",null,null,null,"sanitaires femmes",null,null,null,null,null,null,null,"électromécanique",null,null,"refendeuse"]
[null,"raseuse",null,"Pfaff",null,null,null,null,null,"chaufferie",null,null,null,"vestiaires hommes",null,null,null,null,null,null,null,null,null,null,"riveteuse"]
[null,"refendeuse",null,"PMF",null,null,null,null,null,"local compreseur",null,null,null,"vestiaires femmes",null,null,null,null,null,null,null,null,null,null,"surtaille"]
[null,"riveteuse",null,"Saturn",null,null,null,null,null,"TGBT",null,null,null,"chaufferie",null,null,null,null,null,null,null,null,null,null,"thermocolleuse"]
[null,"souflet",null,"Stif",null,null,null,null,null,"salle info",null,null,null,"local compreseur"]
[null,"stif",null,null,null,null,null,null,null,"local CSE",null,null,null,"TGBT"]
[null,"cabine de teinte",null,null,null,null,null,null,null,null,null,null,null,"salle info"]
[null,null,null,null,null,null,null,null,null,null,null,null,null,"local CSE"]
[null,null,null,null,null,null,null,null,null,null,null,null,null,"Général"]